bitfinex/quotes_BTCUSD_20251015
["timestamp","ask_amount","ask_price","bid_price","bid_amount"]
[1760529584450,0.00989419,112160.0,112140.0,0.1397438]
[1760529584878,0.00989419,112160.0,112140.0,0.1387438]
[1760529585920,0.00989419,112160.0,112140.0,0.0268238]
[1760529586280,0.00989419,112160.0,112140.0,0.1387438]
[1760529589021,0.00989419,112160.0,112140.0,0.0268238]
[1760529589226,0.00989419,112160.0,112140.0,0.1387438]
[1760529589428,0.00989419,112160.0,112140.0,0.0268238]
[1760529589636,0.00989419,112160.0,112140.0,0.1387438]
[1760529591416,0.00989419,112160.0,112140.0,0.0268238]
[1760529591634,0.00989419,112160.0,112140.0,0.1387438]
[1760529592033,0.00989419,112160.0,112140.0,0.0268238]
[1760529592266,0.00989419,112160.0,112140.0,0.1387438]
[1760529596892,0.00989419,112160.0,112140.0,0.1690438]
[1760529597243,0.00989419,112160.0,112140.0,0.0571238]
[1760529597448,0.00989419,112160.0,112140.0,0.1690438]
[1760529597646,0.00989419,112160.0,112140.0,0.0571238]
[1760529597888,0.00989419,112160.0,112140.0,0.1690438]
[1760529598655,0.00989419,112160.0,112140.0,0.07268323]
[1760529598877,0.00989419,112160.0,112140.0,0.1690438]
[1760529599280,0.00989419,112160.0,112140.0,0.07263864]
[1760529599535,0.00989419,112160.0,112140.0,0.1690438]
[1760529599783,0.00989419,112160.0,112140.0,0.0571238]
[1760529599984,0.00989419,112160.0,112140.0,0.1690438]
[1760529600208,0.00989419,112160.0,112140.0,0.0571238]
[1760529600416,4.096683,112150.0,112140.0,0.0303]
[1760529600620,4.106683,112150.0,112140.0,0.0303]
[1760529602215,4.106683,112150.0,112140.0,0.0313]
[1760529602816,4.12328985,112150.0,112140.0,0.0303]
[1760529603013,4.25893244,112150.0,112140.0,0.0303]
[1760529603219,4.23980218,112150.0,112140.0,0.0303]
[1760529603790,4.23978777,112150.0,112140.0,0.0303]
[1760529604419,4.13351325,112150.0,112140.0,0.0303]
[1760529608847,0.03683025,112150.0,112140.0,0.0303]
[1760529609509,0.03683025,112150.0,112140.0,0.0803]
[1760529614715,4.13351325,112150.0,112140.0,0.0803]
[1760529615931,4.004141,112150.0,112140.0,0.0803]
[1760529616154,4.09382308,112150.0,112140.0,0.0803]
[1760529618399,4.12065276,112150.0,112140.0,0.0803]
[1760529622440,4.03097068,112150.0,112140.0,0.0803]
[1760529629850,4.004141,112150.0,112140.0,0.0803]
[1760529631506,4.02075565,112150.0,112140.0,0.0803]
[1760529631706,4.03989512,112150.0,112140.0,0.0803]
[1760529632150,4.06672609,112150.0,112140.0,0.0803]
[1760529632354,4.15640817,112150.0,112140.0,0.0803]
[1760529633224,4.16107313,112150.0,112140.0,0.0803]
[1760529637172,4.14193366,112150.0,112140.0,0.0803]
[1760529642218,4.16106626,112150.0,112140.0,0.0803]
[1760529645021,4.16097709,112150.0,112140.0,0.0803]
[1760529648523,4.16927837,112150.0,112140.0,0.0803]
[1760529649806,4.19315989,112150.0,112140.0,0.0803]
[1760529650015,4.16927837,112150.0,112140.0,0.0803]
[1760529651297,4.07129501,112150.0,112140.0,0.0803]
[1760529651922,4.07229501,112150.0,112140.0,0.0803]
[1760529652543,4.07329501,112150.0,112140.0,0.0803]
[1760529660635,4.05416241,112150.0,112140.0,0.0803]
[1760529661289,4.07329825,112150.0,112140.0,0.0803]
[1760529661493,4.16298033,112150.0,112140.0,0.0803]
[1760529662043,4.14384449,112150.0,112140.0,0.0803]
[1760529662256,4.16298029,112150.0,112140.0,0.0803]
[1760529662477,4.14384449,112150.0,112140.0,0.0803]
[1760529664314,3.88897258,112150.0,112140.0,0.0803]
[1760529669358,3.88896438,112150.0,112140.0,0.0803]
[1760529669775,3.88896464,112150.0,112140.0,0.0803]
[1760529670023,3.87235793,112150.0,112140.0,0.0803]
[1760529671238,0.11249593,112150.0,112140.0,0.0803]
[1760529671490,0.08566496,112150.0,112140.0,0.0803]
[1760529671706,0.00466496,112150.0,112140.0,0.0803]
[1760529671958,3.758862,112160.0,112140.0,0.19222]
[1760529672160,0.02,112160.0,112150.0,0.01783325]
[1760529683356,0.05682258,112190.0,112150.0,0.01783325]
[1760529683563,3.583329,112180.0,112150.0,0.01783325]
[1760529683774,3.583329,112170.0,112150.0,0.01783325]
[1760529683928,3.703329,112170.0,112150.0,0.01783325]
[1760529684146,0.12,112170.0,112150.0,0.01783325]
[1760529690512,3.583329,112160.0,112140.0,0.0803]
[1760529690730,3.583329,112150.0,112140.0,0.0803]
[1760529690964,3.593329,112150.0,112140.0,0.0803]
[1760529691164,0.01,112150.0,112140.0,0.0803]
[1760529698675,3.593329,112150.0,112140.0,0.0803]
[1760529698889,3.63675403,112150.0,112140.0,0.0803]
[1760529699101,3.74554154,112150.0,112140.0,0.0803]
[1760529700384,3.65585946,112150.0,112140.0,0.0803]
[1760529700630,3.63775403,112150.0,112140.0,0.0803]
[1760529700871,3.6211593,112150.0,112140.0,0.0803]
[1760529701087,3.595329,112150.0,112140.0,0.0803]
[1760529701724,3.594329,112150.0,112140.0,0.0803]
[1760529702153,3.593329,112150.0,112140.0,0.0803]
[1760529702402,3.68301108,112150.0,112140.0,0.0803]
[1760529708012,3.593329,112150.0,112140.0,0.0803]
[1760529712000,3.6201611,112150.0,112140.0,0.0803]
[1760529712930,3.6211611,112150.0,112140.0,0.0803]
[1760529713155,3.63774602,112150.0,112140.0,0.0803]
[1760529713891,3.63774828,112150.0,112140.0,0.0803]
[1760529714235,3.71184318,112150.0,112140.0,0.0803]
[1760529715364,3.6221611,112150.0,112140.0,0.0803]
[1760529718164,3.63875512,112150.0,112140.0,0.0803]
[1760529718392,3.65787318,112150.0,112140.0,0.0803]
[1760529722951,3.65789901,112150.0,112140.0,0.0803]
[1760529728649,3.41831301,112150.0,112140.0,0.0803]
[1760529728866,3.62799509,112150.0,112140.0,0.0803]
[1760529731806,3.61137524,112150.0,112140.0,0.0803]
[1760529732010,3.62804322,112150.0,112140.0,0.0803]
[1760529740518,3.61137524,112150.0,112140.0,0.0803]
[1760529740728,3.62804041,112150.0,112140.0,0.0803]
[1760529741566,3.60892235,112150.0,112140.0,0.0803]
[1760529741783,3.62812643,112150.0,112140.0,0.0803]
[1760529741996,3.63646368,112150.0,112140.0,0.0803]
[1760529747458,3.66046878,112150.0,112140.0,0.0803]
[1760529747830,3.65213153,112150.0,112140.0,0.0803]
[1760529748825,3.660482,112150.0,112140.0,0.0803]
[1760529749564,3.66051466,112150.0,112140.0,0.0803]
[1760529752399,3.54682748,112150.0,112140.0,0.0803]
[1760529752604,3.51999538,112150.0,112140.0,0.0803]
[1760529758408,3.52005332,112150.0,112140.0,0.0803]
[1760529763854,3.30235132,112150.0,112140.0,0.0803]
[1760529767063,3.30237221,112150.0,112140.0,0.0803]
[1760529767249,3.39205429,112150.0,112140.0,0.0803]
[1760529768568,3.392064,112150.0,112140.0,0.0803]
[1760529771661,3.30238192,112150.0,112140.0,0.0803]
[1760529772315,3.29402174,112150.0,112140.0,0.0803]
[1760529772925,3.30237546,112150.0,112140.0,0.0803]
[1760529774539,3.30238222,112150.0,112140.0,0.0803]
[1760529776852,3.30237907,112150.0,112140.0,0.0803]
[1760529777055,3.39206115,112150.0,112140.0,0.0803]
[1760529778224,3.41613474,112150.0,112140.0,0.0803]
[1760529778642,3.44296835,112150.0,112140.0,0.0803]
[1760529778904,3.44296064,112150.0,112140.0,0.0803]
[1760529780974,3.4748,112150.0,112140.0,0.0803]
[1760529781176,3.44296064,112150.0,112140.0,0.0803]
[1760529781577,3.53697064,112150.0,112120.0,0.5002]
[1760529781911,3.138041,112120.0,112110.0,0.0002]
[1760529782110,3.40369628,112120.0,112110.0,0.0002]
[1760529782314,3.4305364,112120.0,112110.0,0.0002]
[1760529782518,3.4305364,112120.0,112100.0,0.0002]
[1760529782519,3.138041,112110.0,112100.0,0.0002]
[1760529782840,3.3040142,112110.0,112100.0,0.0002]
[1760529783699,3.3040142,112110.0,112100.0,0.00025003]
[1760529783903,3.39369628,112110.0,112100.0,0.00025003]
[1760529784314,3.37443741,112110.0,112100.0,0.00025003]
[1760529785175,3.39364148,112110.0,112100.0,0.00025003]
[1760529785380,3.37443741,112110.0,112100.0,0.00025003]
[1760529785802,3.44284304,112110.0,112100.0,0.00025003]
[1760529786462,3.44384304,112110.0,112100.0,0.00025003]
[1760529786890,3.47168621,112110.0,112100.0,0.00025003]
[1760529789975,3.40328058,112110.0,112100.0,0.00025003]
[1760529790190,3.40323379,112110.0,112100.0,0.00025003]
[1760529790413,3.40323379,112110.0,112100.0,0.00199024]
[1760529791869,3.42238633,112110.0,112100.0,0.00199024]
[1760529792104,3.42229582,112110.0,112100.0,0.00199024]
[1760529792489,3.405672,112110.0,112100.0,0.00199024]
[1760529793378,3.42229878,112110.0,112100.0,0.00199024]
[1760529795397,3.48833312,112110.0,112100.0,0.00199024]
[1760529796590,3.26999421,112110.0,112100.0,0.00199024]
[1760529797887,3.26899421,112110.0,112100.0,0.00199024]
[1760529798097,3.26799421,112110.0,112100.0,0.00199024]
[1760529800204,3.28462945,112110.0,112100.0,0.00199024]
[1760529801015,3.26799421,112110.0,112100.0,0.00199024]
[1760529801390,3.28463548,112110.0,112100.0,0.00199024]
[1760529801615,3.29934108,112110.0,112100.0,0.00199024]
[1760529804435,3.31853979,112110.0,112100.0,0.00199024]
[1760529804889,3.31853848,112110.0,112100.0,0.00199024]
[1760529806194,3.29934108,112110.0,112100.0,0.00199024]
[1760529806536,3.31856309,112110.0,112100.0,0.00199024]
[1760529807635,3.36943572,112110.0,112100.0,0.00199024]
[1760529808513,3.37978736,112110.0,112100.0,0.00199024]
[1760529809296,3.41162672,112110.0,112100.0,0.00199024]
[1760529809943,3.37978736,112110.0,112100.0,0.00199024]
[1760529810302,3.35294224,112110.0,112100.0,0.00199024]
[1760529813438,3.3847816,112110.0,112100.0,0.00199024]
[1760529814048,3.41162672,112110.0,112100.0,0.00199024]
[1760529815191,3.38759921,112110.0,112100.0,0.00199024]
[1760529815437,3.41168939,112110.0,112100.0,0.00199024]
[1760529815647,3.43535825,112110.0,112100.0,0.00199024]
[1760529815864,3.137994,112100.0,112070.0,0.0719521]
[1760529816077,3.137994,112080.0,112070.0,0.0719521]
[1760529816290,3.17385728,112080.0,112070.0,0.0002]
[1760529816498,3.32795124,112080.0,112070.0,0.00194093]
[1760529816725,3.35480287,112080.0,112070.0,0.00194093]
[1760529816930,3.4236809,112080.0,112070.0,0.00194093]
[1760529817145,3.48926902,112080.0,112070.0,0.00194093]
[1760529818112,3.49026902,112080.0,112070.0,0.00194093]
[1760529818918,3.50426088,112080.0,112070.0,0.00194093]
[1760529819172,3.5283047,112080.0,112070.0,0.00194093]
[1760529819391,3.49617942,112080.0,112070.0,0.00194093]
[1760529819593,3.49717942,112080.0,112070.0,0.00194093]
[1760529822701,3.56331854,112080.0,112070.0,0.00194093]
[1760529823109,3.59544382,112080.0,112070.0,0.00194093]
[1760529823522,3.56331854,112080.0,112070.0,0.00194093]
[1760529824148,3.59544382,112080.0,112070.0,0.00194093]
[1760529824348,3.56331854,112080.0,112070.0,0.00194093]
[1760529824552,3.59544382,112080.0,112070.0,0.00194093]
[1760529824757,3.56331854,112080.0,112070.0,0.00194093]
[1760529826372,3.49717942,112080.0,112070.0,0.00194093]
[1760529826578,3.4731356,112080.0,112070.0,0.00194093]
[1760529828094,3.34261003,112080.0,112070.0,0.00194093]
[1760529828301,3.32338802,112080.0,112070.0,0.00194093]
[1760529828934,3.32238802,112080.0,112070.0,0.00194093]
[1760529829992,3.32138802,112080.0,112070.0,0.00194093]
[1760529830404,3.30474675,112080.0,112070.0,0.00194093]
[1760529831215,3.39442883,112080.0,112070.0,0.00194093]
[1760529832050,3.41110278,112080.0,112070.0,0.00194093]
[1760529832463,3.41110258,112080.0,112070.0,0.00194093]
[1760529832666,3.41110496,112080.0,112070.0,0.00194093]
[1760529833537,3.30474675,112080.0,112070.0,0.00194093]
[1760529838113,3.32143589,112080.0,112070.0,0.00194093]
[1760529838555,3.32143694,112080.0,112070.0,0.00194093]
[1760529839406,3.30474675,112080.0,112070.0,0.00194093]
[1760529840493,3.32143914,112080.0,112070.0,0.00194093]
[1760529840713,3.41112122,112080.0,112070.0,0.00194093]
[1760529841137,3.43035084,112080.0,112070.0,0.00194093]
[1760529841348,3.43393096,112080.0,112070.0,0.00194093]
[1760529843551,3.68233096,112080.0,112070.0,0.00194093]
[1760529844066,3.69068005,112080.0,112070.0,0.00194093]
[1760529844268,3.49142928,112080.0,112070.0,0.00194093]
[1760529845969,3.5154731,112080.0,112070.0,0.00194093]
[1760529846459,3.5164731,112080.0,112070.0,0.00194093]
[1760529846657,3.5174731,112080.0,112070.0,0.00194093]
[1760529848563,3.53146479,112080.0,112070.0,0.00194093]
[1760529850951,3.51066747,112080.0,112070.0,0.00194093]
[1760529853513,3.49397508,112080.0,112070.0,0.00194093]
[1760529854218,3.51873518,112080.0,112070.0,0.00194093]
[1760529854432,3.52607059,112080.0,112070.0,0.00194093]
[1760529854780,3.54274223,112080.0,112070.0,0.00194093]
[1760529855231,3.29434223,112080.0,112070.0,0.00194093]
[1760529855848,3.26221695,112080.0,112070.0,0.00194093]
[1760529859338,3.02455996,112080.0,112070.0,0.00194093]
[1760529860395,3.07864078,112080.0,112070.0,0.00194093]
[1760529860608,3.09520265,112080.0,112070.0,0.00194093]
[1760529860836,3.05451696,112080.0,112070.0,0.00194093]
[1760529861042,3.07119748,112080.0,112070.0,0.00194093]
[1760529862555,3.05463561,112080.0,112070.0,0.00194093]
[1760529862757,3.02456884,112080.0,112070.0,0.00194093]
[1760529863402,3.04858289,112080.0,112070.0,0.00194093]
[1760529863828,3.04857694,112080.0,112070.0,0.00194093]
[1760529865098,3.02456289,112080.0,112070.0,0.00194093]
[1760529865311,3.04857694,112080.0,112070.0,0.00194093]
[1760529866862,3.05691822,112080.0,112070.0,0.00194093]
[1760529867907,3.05692068,112080.0,112070.0,0.00194093]
[1760529868341,3.15102068,112080.0,112070.0,0.00194093]
[1760529868561,3.05692068,112080.0,112070.0,0.00194093]
[1760529869163,3.03412879,112080.0,112070.0,0.00194093]
[1760529869371,3.0201371,112080.0,112070.0,0.00194093]
[1760529869774,3.05153315,112080.0,112070.0,0.00194093]
[1760529870152,3.0275191,112080.0,112070.0,0.00194093]
[1760529873186,3.05153315,112080.0,112070.0,0.00194093]
[1760529873385,3.11720118,112080.0,112070.0,0.00194093]
[1760529878162,3.0275191,112080.0,112070.0,0.00194093]
[1760529879006,3.0265191,112080.0,112070.0,0.00194093]
[1760529879217,3.0255191,112080.0,112070.0,0.00194093]
[1760529883209,3.2255191,112080.0,112070.0,0.00194093]
[1760529888730,3.21717536,112080.0,112070.0,0.00194093]
[1760529888941,3.26141006,112080.0,112070.0,0.00194093]
[1760529889391,3.24218044,112080.0,112070.0,0.00194093]
[1760529889828,2.99794574,112080.0,112070.0,0.00194093]
[1760529890276,2.98127117,112080.0,112070.0,0.00194093]
[1760529890518,2.97769105,112080.0,112070.0,0.00194093]
[1760529893521,0.05139605,112080.0,112070.0,0.01978691]
[1760529893726,0.05139605,112080.0,112070.0,0.00194093]
[1760529893945,0.05139605,112080.0,112070.0,0.01978691]
[1760529894577,0.05139605,112080.0,112070.0,0.00194093]
[1760529895800,2.926295,112100.0,112070.0,0.00194093]
[1760529896006,3.056295,112100.0,112080.0,0.01784439]
[1760529896214,2.926295,112090.0,112070.0,0.0002]
[1760529896425,0.1,112090.0,112070.0,0.0002]
[1760529896632,0.6,112090.0,112080.0,0.00116053]
[1760529896851,3.026295,112090.0,112080.0,0.00116053]
[1760529897055,3.05645185,112090.0,112080.0,0.00116053]
[1760529897955,0.13015685,112090.0,112080.0,0.00116053]
[1760529898370,0.03015685,112090.0,112080.0,0.00116053]
[1760529898802,2.9531345,112130.0,112080.0,0.01900492]
[1760529899027,2.926295,112120.0,112080.0,0.05783049]
[1760529899231,2.926295,112110.0,112080.0,0.05783049]
[1760529899437,2.926295,112100.0,112080.0,0.05783049]
[1760529899670,3.006295,112100.0,112080.0,0.01799338]
[1760529899878,0.08,112100.0,112080.0,0.01799338]
[1760529900732,0.11092526,112100.0,112080.0,0.01799338]
[1760529904382,0.11092526,112100.0,112090.0,0.00058022]
[1760529909080,0.11092526,112100.0,112090.0,0.37974638]
[1760529909303,0.08,112100.0,112090.0,0.37974638]
[1760529909517,0.14,112130.0,112090.0,0.37974638]
[1760529909518,2.926295,112110.0,112090.0,0.49178638]
[1760529909732,0.03018264,112120.0,112100.0,0.39700737]
[1760529909962,0.03018264,112120.0,112110.0,0.37916616]
[1760529909963,0.03,112120.0,112110.0,0.37916616]
[1760529910171,0.03,112120.0,112110.0,0.11208]
[1760529910383,2.926295,112130.0,112110.0,0.12991962]
[1760529910601,0.12269505,112140.0,112110.0,0.50908578]
[1760529910856,0.11269505,112140.0,112110.0,0.11208]
[1760529911066,0.09,112140.0,112120.0,0.01783803]
[1760529911274,0.09,112140.0,112120.0,0.15178042]
[1760529911479,0.09,112140.0,112120.0,0.55777384]
[1760529912146,0.09,112140.0,112120.0,0.17860768]
[1760529912367,0.09050117,112140.0,112130.0,0.01783643]
[1760529913496,0.09050117,112140.0,112130.0,0.46875469]
[1760529913724,0.00050117,112140.0,112130.0,0.37916616]
[1760529913940,0.00050117,112140.0,112130.0,0.49236616]
[1760529914161,0.00050117,112140.0,112130.0,0.49336616]
[1760529914795,0.00050117,112140.0,112130.0,0.49236616]
[1760529915015,0.00050117,112140.0,112130.0,0.52876839]
[1760529915226,0.00050117,112140.0,112130.0,0.52776839]
[1760529915438,0.00050117,112140.0,112130.0,0.90893455]
[1760529916303,0.00050117,112140.0,112130.0,0.91093455]
[1760529917145,0.00050117,112140.0,112130.0,0.91089455]
[1760529917353,0.00050117,112140.0,112130.0,0.79873455]
[1760529917572,0.00050117,112140.0,112130.0,0.91089455]
[1760529919026,0.00050117,112140.0,112130.0,1.29006071]
[1760529919271,0.00050117,112140.0,112130.0,1.17790071]
[1760529919486,0.00050117,112140.0,112130.0,1.29006071]
[1760529919720,0.00050117,112140.0,112130.0,1.17790071]
[1760529919942,0.00050117,112140.0,112130.0,0.79873455]
[1760529920175,0.00050117,112140.0,112130.0,1.29006071]
[1760529920395,0.00050117,112140.0,112130.0,0.79873455]
[1760529920611,0.00050117,112140.0,112130.0,0.91089455]
[1760529921072,0.00050117,112140.0,112130.0,0.79673455]
[1760529921502,0.00050117,112140.0,112130.0,1.37775083]
[1760529921933,0.00050117,112140.0,112130.0,1.37575083]
[1760529922154,0.00050117,112140.0,112130.0,1.37583083]
[1760529922367,0.00050117,112140.0,112130.0,1.37983083]
[1760529923230,0.00050117,112140.0,112130.0,7.54050552]
[1760529923489,0.00050117,112140.0,112130.0,7.43130552]
[1760529923702,0.00050117,112140.0,112130.0,7.54154552]
[1760529923922,0.00050117,112140.0,112130.0,7.43130552]
[1760529924129,0.00050117,112140.0,112130.0,7.54354552]
[1760529924552,0.00050117,112140.0,112130.0,7.54350552]
[1760529924979,0.00050117,112140.0,112130.0,7.43130552]
[1760529925206,0.00050117,112140.0,112130.0,7.53850552]
[1760529925412,0.00050117,112140.0,112130.0,7.54150552]
[1760529925827,0.00050117,112140.0,112130.0,7.54450552]
[1760529926045,0.00050117,112140.0,112130.0,7.54150552]
[1760529926474,0.00050117,112140.0,112130.0,7.54450552]
[1760529927790,0.00050117,112140.0,112130.0,7.43230552]
[1760529928209,0.00050117,112140.0,112130.0,7.55321448]
[1760529928670,0.00050117,112140.0,112130.0,7.45911448]
[1760529928855,0.00050117,112140.0,112130.0,7.66537448]
[1760529929305,0.0004,112200.0,112190.0,0.37916616]
[1760529929517,0.0005504,112200.0,112190.0,0.87049232]
[1760529929725,0.0005504,112200.0,112190.0,0.49132616]
[1760529930025,0.0005504,112200.0,112190.0,0.37916616]
[1760529930298,0.0005504,112200.0,112190.0,0.76699799]
[1760529930514,0.0005504,112200.0,112190.0,0.87915799]
[1760529930748,0.0005504,112200.0,112190.0,0.00866567]
[1760529930990,0.0005504,112200.0,112190.0,0.89698489]
[1760529931202,0.0005504,112200.0,112190.0,0.87915799]
[1760529931424,0.0005504,112200.0,112190.0,0.76699799]
[1760529931665,0.0005504,112200.0,112190.0,0.88115799]
[1760529931886,0.0005504,112200.0,112190.0,0.76899799]
[1760529932096,0.0005504,112200.0,112190.0,0.88115799]
[1760529932556,0.0005504,112200.0,112190.0,0.76799799]
[1760529932764,0.0005504,112200.0,112190.0,0.38983183]
[1760529932974,0.0005504,112200.0,112190.0,0.50199183]
[1760529933186,0.0005504,112200.0,112190.0,0.39183183]
[1760529934349,0.0005504,112200.0,112190.0,0.50399183]
[1760529934554,0.0005504,112200.0,112190.0,0.38983183]
[1760529934761,0.0005504,112200.0,112190.0,0.00866567]
[1760529934972,0.0005504,112200.0,112190.0,0.50199183]
[1760529935184,0.00402752,112200.0,112190.0,0.38983183]
[1760529935589,0.00402752,112200.0,112190.0,0.002]
[1760529935846,0.00402752,112200.0,112190.0,0.004]
[1760529936071,0.00402752,112200.0,112190.0,0.11616]
[1760529936286,0.00402752,112200.0,112190.0,0.0218269]
[1760529936542,0.00402752,112200.0,112190.0,0.0198269]
[1760529936760,0.00402752,112200.0,112190.0,0.1329869]
[1760529936966,0.00402752,112200.0,112190.0,0.0208269]
[1760529937390,0.00402752,112200.0,112190.0,0.003]
[1760529937611,0.02402752,112200.0,112190.0,0.11316]
[1760529937850,0.02402752,112200.0,112190.0,0.001]
[1760529938081,0.02402752,112200.0,112190.0,0.0198269]
[1760529938316,0.02402752,112200.0,112190.0,0.002]
[1760529938521,0.02402752,112200.0,112190.0,0.001]
[1760529939399,0.03232192,112200.0,112190.0,0.001]
[1760529939603,0.03232203,112200.0,112190.0,0.001]
[1760529941100,0.01232203,112200.0,112190.0,0.001]
[1760529941520,0.01232203,112200.0,112190.0,0.11316]
[1760529941521,0.00402752,112200.0,112190.0,0.11316]
[1760529941741,0.00402752,112200.0,112190.0,0.67883599]
[1760529941955,0.00402752,112200.0,112190.0,0.77316909]
[1760529942806,0.00402752,112200.0,112190.0,0.66100909]
[1760529943244,0.00402752,112200.0,112190.0,0.77516909]
[1760529943880,0.00402752,112200.0,112190.0,0.77416909]
[1760529944119,0.00402752,112200.0,112190.0,0.86585921]
[1760529944534,0.00402752,112200.0,112190.0,0.75369921]
[1760529945142,0.00402752,112200.0,112190.0,0.86589921]
[1760529945359,0.00402752,112200.0,112190.0,0.75369921]
[1760529945571,0.00402752,112200.0,112190.0,0.86585921]
[1760529945794,0.00402752,112200.0,112190.0,0.75369921]
[1760529946004,0.00402752,112200.0,112190.0,0.86585921]
[1760529946436,0.00402752,112200.0,112190.0,0.75369921]
[1760529946627,0.00402752,112200.0,112190.0,0.86585921]
[1760529948371,0.00402752,112200.0,112190.0,0.75369921]
[1760529948585,0.00402752,112200.0,112190.0,0.86585921]
[1760529951373,0.00402752,112200.0,112190.0,0.75369921]
[1760529951616,0.00402752,112200.0,112190.0,0.86581921]
[1760529951835,0.00402752,112200.0,112190.0,5.86581921]
[1760529953541,0.00402752,112200.0,112190.0,5.75369921]
[1760529953738,0.00402752,112200.0,112190.0,5.86581921]
[1760529953941,0.00402752,112200.0,112190.0,5.8910136]
[1760529954362,0.00402752,112200.0,112190.0,5.7788936]
[1760529954564,0.00402752,112200.0,112190.0,5.8910136]
[1760529954769,0.00402752,112200.0,112190.0,5.75369921]
[1760529955001,0.00402752,112200.0,112190.0,5.86581921]
[1760529955684,0.00402752,112200.0,112190.0,5.75369921]
[1760529955899,0.00402752,112200.0,112190.0,5.86581921]
[1760529956678,0.00402752,112200.0,112190.0,5.75369921]
[1760529956856,0.00402752,112200.0,112190.0,5.86577921]
[1760529957698,0.00402752,112200.0,112190.0,5.75369921]
[1760529958119,0.00402752,112200.0,112190.0,5.95987921]
[1760529958323,0.00402752,112200.0,112190.0,5.84779921]
[1760529958536,0.00402752,112200.0,112190.0,5.95987921]
[1760529959168,0.00402752,112200.0,112190.0,5.96390673]
[1760529959798,0.00402752,112200.0,112190.0,5.97240672]
[1760529960215,0.00402752,112200.0,112190.0,5.99027672]
[1760529960425,0.00402752,112200.0,112190.0,5.12408763]
[1760529960646,0.00402752,112200.0,112190.0,0.87830672]
[1760529960846,0.00402752,112200.0,112190.0,0.87838672]
[1760529961534,0.00402752,112200.0,112190.0,0.87438672]
[1760529961777,0.00402752,112200.0,112190.0,0.87638672]
[1760529962633,0.00402752,112200.0,112190.0,0.10721763]
[1760529962839,0.00402752,112200.0,112190.0,0.01752751]
[1760529963080,0.00402752,112200.0,112190.0,0.01452751]
[1760529963290,0.00402752,112200.0,112190.0,0.11818752]
[1760529963496,0.00402752,112200.0,112190.0,0.00802752]
[1760529963708,0.00402752,112200.0,112190.0,0.11616]
[1760529963913,0.00402752,112200.0,112190.0,0.002]
[1760529964117,0.00402752,112200.0,112190.0,0.11416]
[1760529964344,0.00402752,112200.0,112190.0,0.002]
[1760529964556,0.00402752,112200.0,112190.0,0.004]
[1760529964767,0.00402752,112200.0,112190.0,0.11616]
[1760529964968,0.00402752,112200.0,112190.0,0.11416]
[1760529965387,0.00402752,112200.0,112190.0,0.1152]
[1760529965605,0.00402752,112200.0,112190.0,0.11416]
[1760529965815,0.00402752,112200.0,112170.0,0.00402752]
[1760529966016,0.0005504,112200.0,112190.0,0.001]
[1760529966236,0.0005504,112200.0,112190.0,0.11416]
[1760529966458,0.0005504,112200.0,112190.0,0.002]
[1760529966672,0.0005504,112200.0,112190.0,0.11316]
[1760529966896,0.0005504,112200.0,112190.0,0.002]
[1760529967340,0.0005504,112200.0,112190.0,0.001]
[1760529967558,0.0005504,112200.0,112190.0,0.11316]
[1760529968214,0.0005504,112200.0,112190.0,0.001]
[1760529968419,0.0005504,112200.0,112190.0,0.002]
[1760529968618,0.0005504,112200.0,112190.0,0.06536]
[1760529968842,0.0005504,112200.0,112190.0,0.002]
[1760529969302,0.0005504,112200.0,112190.0,0.11416]
[1760529969572,0.0005504,112200.0,112190.0,0.002]
[1760529969795,0.0005504,112200.0,112190.0,0.11416]
[1760529970057,0.0005504,112200.0,112190.0,0.002]
[1760529971027,0.0205504,112200.0,112190.0,0.002]
[1760529971231,2.9468454,112200.0,112190.0,0.002]
[1760529971442,3.53652748,112200.0,112190.0,0.002]
[1760529971651,3.0400046,112200.0,112190.0,0.002]
[1760529972206,2.926295,112190.0,112160.0,0.01783166]
[1760529972412,2.956295,112190.0,112160.0,0.06331166]
[1760529972638,0.00173903,112170.0,112160.0,0.01783166]
[1760529973054,0.00173903,112170.0,112160.0,0.13003166]
[1760529973263,0.00173903,112170.0,112160.0,0.01783166]
[1760529973473,0.00173903,112170.0,112160.0,0.13003166]
[1760529974203,0.00173903,112170.0,112160.0,0.01783166]
[1760529974644,0.00173903,112170.0,112160.0,0.01883166]
[1760529974848,0.00173903,112170.0,112160.0,0.1132]
[1760529975027,0.00173903,112170.0,112160.0,0.79104075]
[1760529975241,0.00173903,112170.0,112160.0,0.1142]
[1760529975448,0.00173903,112170.0,112160.0,0.13203166]
[1760529976722,0.00173903,112170.0,112160.0,0.01983166]
[1760529976932,0.00173903,112170.0,112160.0,0.13203166]
[1760529978241,0.00173903,112170.0,112160.0,0.76953087]
[1760529978466,0.00173903,112170.0,112160.0,0.75169921]
[1760529978682,0.00173903,112170.0,112160.0,0.86393921]
[1760529980053,0.00173903,112170.0,112160.0,0.75169921]
[1760529980272,0.00173903,112170.0,112160.0,0.86747389]
[1760529980483,0.00173903,112170.0,112160.0,0.75527389]
[1760529980867,0.00173903,112170.0,112160.0,0.86747389]
[1760529981076,0.00173903,112170.0,112160.0,0.0952648]
[1760529981280,0.00173903,112170.0,112160.0,0.88530555]
[1760529981478,0.00173903,112170.0,112160.0,0.75527389]
[1760529981862,0.00173903,112170.0,112160.0,0.86747389]
[1760529982062,0.00173903,112170.0,112160.0,0.75527389]
[1760529982290,2.790067,112240.0,112160.0,0.75527389]
[1760529982528,2.790067,112230.0,112170.0,0.01783007]
[1760529982720,2.790067,112220.0,112180.0,0.1122]
[1760529983032,0.1,112220.0,112190.0,0.0178269]
[1760529983236,0.1,112220.0,112190.0,0.1300269]
[1760529983449,0.1,112220.0,112190.0,0.0178269]
[1760529983591,2.790067,112210.0,112190.0,0.1122]
[1760529983817,0.01,112210.0,112190.0,0.1122]
[1760529984018,0.01,112210.0,112180.0,0.01782848]
[1760529984221,0.01,112210.0,112190.0,0.1300269]
[1760529984536,0.01,112210.0,112190.0,0.1122]
[1760529984694,0.01,112210.0,112200.0,0.01782531]
[1760529985504,0.01,112210.0,112190.0,0.1122]
[1760529985732,0.01,112210.0,112200.0,0.01782531]
[1760529986591,0.01,112210.0,112190.0,0.1300269]
[1760529987116,0.01,112210.0,112190.0,0.0178269]
[1760529987559,0.01,112210.0,112190.0,0.1300269]
[1760529987975,0.01,112210.0,112190.0,0.1299869]
[1760529988812,0.01,112210.0,112170.0,0.0717521]
[1760529989031,0.01,112210.0,112180.0,0.11216]
[1760529990536,0.01,112210.0,112170.0,0.0717521]
[1760529990890,0.01,112210.0,112180.0,0.11216]
[1760529991106,0.01,112210.0,112170.0,0.02681035]
[1760529991337,0.00115898,112190.0,112170.0,0.02681035]